[Event "Late-Titled-Tuesday-Blitz-July-09-2024"]
[Site "Chess.com"]
[Date "2024.07.09"]
[Round "8"]
[White "gamboajp"]
[Black "AsaHoffmann"]
[Result "1-0"]
[WhiteElo "2185"]
[BlackElo "2374"]
[TimeControl "180+1"]
[EndTime "15:28:54 PDT"]
[Termination "gamboajp won by checkmate"]

1. c4 {[%clk 0:02:54.1]} 1... Nf6 {[%clk 0:02:58.4]} 2. Nc3 {[%clk 0:02:54.4]}
2... d6 {[%clk 0:02:57.7]} 3. e4 {[%clk 0:02:54.5]} 3... c6 {[%clk 0:02:53.8]}
4. g3 {[%clk 0:02:54.8]} 4... e5 {[%clk 0:02:51.9]} 5. Bg2 {[%clk 0:02:54.9]}
5... Be6 {[%clk 0:02:51.6]} 6. d3 {[%clk 0:02:54.6]} 6... d5 {[%clk 0:02:51.5]}
7. exd5 {[%clk 0:02:52]} 7... cxd5 {[%clk 0:02:51.2]} 8. Bg5 {[%clk 0:02:45.5]}
8... Bb4 {[%clk 0:02:46.7]} 9. Qa4+ {[%clk 0:02:31.5]} 9... Nc6 {[%clk
0:02:45.8]} 10. Bxf6 {[%clk 0:02:21.1]} 10... gxf6 {[%clk 0:02:42.3]} 11. Ne2
{[%clk 0:02:05.4]} 11... O-O {[%clk 0:02:28]} 12. cxd5 {[%clk 0:01:46.1]} 12...
Bxd5 {[%clk 0:02:26.5]} 13. O-O {[%clk 0:01:28.9]} 13... Bxg2 {[%clk 0:02:19.2]}
14. Kxg2 {[%clk 0:01:29.2]} 14... Bxc3 {[%clk 0:02:18.4]} 15. Nxc3 {[%clk
0:01:26.8]} 15... Qxd3 {[%clk 0:02:16]} 16. Ne4 {[%clk 0:01:20]} 16... Kg7
{[%clk 0:02:09.4]} 17. Rad1 {[%clk 0:01:09.1]} 17... Qa6 {[%clk 0:02:04.5]} 18.
Qxa6 {[%clk 0:00:55.4]} 18... bxa6 {[%clk 0:01:59.6]} 19. Nxf6 {[%clk
0:00:50.9]} 19... Kxf6 {[%clk 0:01:58]} 20. Rd6+ {[%clk 0:00:50.2]} 20... Kf5
{[%clk 0:01:57.1]} 21. Rxc6 {[%clk 0:00:50.5]} 21... Rab8 {[%clk 0:01:55.9]} 22.
b3 {[%clk 0:00:50.6]} 22... Rb6 {[%clk 0:01:55.7]} 23. Rc7 {[%clk 0:00:50.1]}
23... f6 {[%clk 0:01:49]} 24. Rxh7 {[%clk 0:00:47.7]} 24... Rc8 {[%clk
0:01:48.1]} 25. Rxa7 {[%clk 0:00:24.9]} 25... Rc2 {[%clk 0:01:46.9]} 26. Ra1
{[%clk 0:00:24.8]} 26... Rd6 {[%clk 0:01:45.9]} 27. a4 {[%clk 0:00:16.2]} 27...
Rdd2 {[%clk 0:01:45.1]} 28. Rf1 {[%clk 0:00:16.1]} 28... e4 {[%clk 0:01:45.1]}
29. Re7 {[%clk 0:00:14.7]} 29... Rb2 {[%clk 0:01:43.9]} 30. h3 {[%clk
0:00:13.1]} 30... Rxb3 {[%clk 0:01:43.5]} 31. g4+ {[%clk 0:00:13.1]} 31... Kf4
{[%clk 0:01:40.8]} 32. Re1 {[%clk 0:00:13.4]} 32... Rb4 {[%clk 0:01:38.7]} 33.
Re6 {[%clk 0:00:13.7]} 33... f5 {[%clk 0:01:37.9]} 34. Rf6 {[%clk 0:00:11.9]}
34... Rd5 {[%clk 0:01:34.2]} 35. Rxa6 {[%clk 0:00:10.8]} 35... fxg4 {[%clk
0:01:32.9]} 36. hxg4 {[%clk 0:00:11.2]} 36... Kxg4 {[%clk 0:01:32.8]} 37. Re6
{[%clk 0:00:10.7]} 37... Kf5 {[%clk 0:01:32.1]} 38. Re8 {[%clk 0:00:09.7]} 38...
Rxa4 {[%clk 0:01:31.1]} 39. Rf8+ {[%clk 0:00:09.9]} 39... Kg5 {[%clk 0:01:29.2]}
40. Kg3 {[%clk 0:00:10.2]} 40... Rd3+ {[%clk 0:01:27.7]} 41. Re3 {[%clk
0:00:10.4]} 41... Rxe3+ {[%clk 0:01:27.2]} 42. fxe3 {[%clk 0:00:10.1]} 42... Rb4
{[%clk 0:01:26]} 43. Rf4 {[%clk 0:00:10.1]} 43... Rb5 {[%clk 0:01:21]} 44. Rg4+
{[%clk 0:00:10.3]} 44... Kf5 {[%clk 0:01:20.8]} 45. Rh4 {[%clk 0:00:10.5]} 45...
Rb3 {[%clk 0:01:19.9]} 46. Kf2 {[%clk 0:00:06.7]} 46... Rb2+ {[%clk 0:01:17.6]}
47. Kg3 {[%clk 0:00:06.7]} 47... Re2 {[%clk 0:01:17.3]} 48. Rh5+ {[%clk
0:00:06.4]} 48... Ke6 {[%clk 0:01:17.1]} 49. Kf4 {[%clk 0:00:05]} 49... Rf2+
{[%clk 0:01:15]} 50. Kxe4 {[%clk 0:00:05.3]} 50... Ra2 {[%clk 0:01:14.5]} 51.
Rh6+ {[%clk 0:00:05.6]} 51... Ke7 {[%clk 0:01:14.4]} 52. Kf5 {[%clk 0:00:05.5]}
52... Ra5+ {[%clk 0:01:13.7]} 53. Kf4 {[%clk 0:00:05.9]} 53... Ra4+ {[%clk
0:01:13.4]} 54. e4 {[%clk 0:00:06.3]} 54... Ra5 {[%clk 0:01:13]} 55. e5 {[%clk
0:00:06.7]} 55... Rb5 {[%clk 0:01:13.1]} 56. Kf5 {[%clk 0:00:07]} 56... Rb1
{[%clk 0:01:12.8]} 57. Rh7+ {[%clk 0:00:07.6]} 57... Kf8 {[%clk 0:01:12.8]} 58.
Kf6 {[%clk 0:00:07.6]} 58... Rf1+ {[%clk 0:01:11.8]} 59. Ke6 {[%clk 0:00:08]}
59... Kg8 {[%clk 0:01:11.8]} 60. Ra7 {[%clk 0:00:08.1]} 60... Re1 {[%clk
0:01:10.4]} 61. Ra8+ {[%clk 0:00:07.4]} 61... Kg7 {[%clk 0:01:10.4]} 62. Ra7+
{[%clk 0:00:06.3]} 62... Kg6 {[%clk 0:01:09.7]} 63. Kd6 {[%clk 0:00:06.1]} 63...
Rd1+ {[%clk 0:01:09.4]} 64. Ke7 {[%clk 0:00:06.4]} 64... Re1 {[%clk 0:01:09.1]}
65. e6 {[%clk 0:00:06.9]} 65... Kf5 {[%clk 0:01:09]} 66. Ra5+ {[%clk 0:00:06.6]}
66... Kg6 {[%clk 0:01:08.8]} 67. Kd7 {[%clk 0:00:06.2]} 67... Rd1+ {[%clk
0:01:08.5]} 68. Ke8 {[%clk 0:00:06.2]} 68... Re1 {[%clk 0:01:08.3]} 69. e7
{[%clk 0:00:06.5]} 69... Kf6 {[%clk 0:01:08.3]} 70. Ra6+ {[%clk 0:00:07]} 70...
Kg7 {[%clk 0:01:08.1]} 71. Rd6 {[%clk 0:00:06.2]} 71... Re3 {[%clk 0:01:06.1]}
72. Rd2 {[%clk 0:00:05.5]} 72... Ra3 {[%clk 0:01:04.8]} 73. Rg2+ {[%clk
0:00:05.2]} 73... Kf6 {[%clk 0:01:04.7]} 74. Rf2+ {[%clk 0:00:05.6]} 74... Ke6
{[%clk 0:01:04.5]} 75. Kf8 {[%clk 0:00:04.6]} 75... Ra8+ {[%clk 0:01:03]} 76.
e8=Q+ {[%clk 0:00:04.5]} 76... Rxe8+ {[%clk 0:01:02.3]} 77. Kxe8 {[%clk
0:00:05]} 77... Kd6 {[%clk 0:01:02.1]} 78. Rf7 {[%clk 0:00:05.4]} 78... Ke6
{[%clk 0:01:01.9]} 79. Re7+ {[%clk 0:00:05.9]} 79... Kd6 {[%clk 0:01:01.9]} 80.
Kd8 {[%clk 0:00:06.4]} 80... Kc6 {[%clk 0:01:01.6]} 81. Rd7 {[%clk 0:00:06.9]}
81... Kb6 {[%clk 0:01:01.3]} 82. Rc7 {[%clk 0:00:07.1]} 82... Ka6 {[%clk
0:01:01.1]} 83. Kd7 {[%clk 0:00:07.7]} 83... Kb6 {[%clk 0:01:01]} 84. Kd6 {[%clk
0:00:08.2]} 84... Kb5 {[%clk 0:01:00.6]} 85. Kd5 {[%clk 0:00:08.1]} 85... Kb6
{[%clk 0:01:00.2]} 86. Rd7 {[%clk 0:00:08.7]} 86... Kb5 {[%clk 0:00:59.6]} 87.
Rb7+ {[%clk 0:00:09]} 87... Ka6 {[%clk 0:00:59.4]} 88. Kc6 {[%clk 0:00:08.9]}
88... Ka5 {[%clk 0:00:58.8]} 89. Kc5 {[%clk 0:00:09]} 89... Ka4 {[%clk
0:00:58.4]} 90. Rb8 {[%clk 0:00:09]} 90... Ka3 {[%clk 0:00:57.9]} 91. Kc4 {[%clk
0:00:09.5]} 91... Ka2 {[%clk 0:00:57.5]} 92. Kc3 {[%clk 0:00:09.9]} 92... Ka1
{[%clk 0:00:57.3]} 93. Kc2 {[%clk 0:00:10.3]} 93... Ka2 {[%clk 0:00:56.8]} 94.
Ra8# {[%clk 0:00:10.6]} 1-0

[Event "Late-Titled-Tuesday-Blitz-July-09-2024"]
[Site "Chess.com"]
[Date "2024.07.09"]
[Round "8"]
[White "falzehope0"]
[Black "klercaku"]
[Result "0-1"]
[WhiteElo "2445"]
[BlackElo "2387"]
[TimeControl "180+1"]
[EndTime "15:29:03 PDT"]
[Termination "klercaku won by resignation"]

1. d4 {[%clk 0:03:00.9]} 1... d5 {[%clk 0:03:00]} 2. e3 {[%clk 0:03:00.9]} 2...
e6 {[%clk 0:03:00.5]} 3. Bd3 {[%clk 0:02:59.9]} 3... Nf6 {[%clk 0:03:01.1]} 4.
f4 {[%clk 0:03:00.2]} 4... Nbd7 {[%clk 0:03:01.8]} 5. Nf3 {[%clk 0:03:00.6]}
5... c5 {[%clk 0:03:02.5]} 6. c3 {[%clk 0:02:59.9]} 6... cxd4 {[%clk 0:03:02]}
7. exd4 {[%clk 0:02:59.8]} 7... a6 {[%clk 0:03:02.6]} 8. Nbd2 {[%clk 0:02:58.9]}
8... b5 {[%clk 0:03:02.1]} 9. a3 {[%clk 0:02:58.5]} 9... Rb8 {[%clk 0:03:00.9]}
10. Ne5 {[%clk 0:02:58.6]} 10... Qc7 {[%clk 0:02:59.3]} 11. Qf3 {[%clk
0:02:55.7]} 11... a5 {[%clk 0:02:57.7]} 12. O-O {[%clk 0:02:49.1]} 12... b4
{[%clk 0:02:57.4]} 13. axb4 {[%clk 0:02:30.7]} 13... axb4 {[%clk 0:02:58.3]} 14.
c4 {[%clk 0:02:28.4]} 14... Be7 {[%clk 0:02:44.3]} 15. c5 {[%clk 0:02:25.1]}
15... O-O {[%clk 0:02:43.7]} 16. g4 {[%clk 0:02:16.7]} 16... Bb7 {[%clk
0:02:32]} 17. Bb5 {[%clk 0:02:01.9]} 17... Nxc5 {[%clk 0:02:26.6]} 18. g5 {[%clk
0:01:39.5]} 18... Nfe4 {[%clk 0:02:20.7]} 19. Kh1 {[%clk 0:01:32.5]} 19... Nxd2
{[%clk 0:02:13.3]} 20. Bxd2 {[%clk 0:01:31.7]} 20... Ne4 {[%clk 0:02:13.9]} 21.
Be1 {[%clk 0:01:23.7]} 21... Ra8 {[%clk 0:02:07.6]} 22. Rb1 {[%clk 0:01:14.3]}
22... Qb6 {[%clk 0:01:51.7]} 23. Qd3 {[%clk 0:01:00.9]} 23... Ba6 {[%clk
0:01:40.7]} 24. Bxa6 {[%clk 0:00:57.8]} 24... Qxa6 {[%clk 0:01:41.6]} 25. Qf3
{[%clk 0:00:53.5]} 25... Rfc8 {[%clk 0:01:23]} 26. f5 {[%clk 0:00:43]} 26...
Nxg5 {[%clk 0:01:15.8]} 27. Qg2 {[%clk 0:00:42.2]} 27... exf5 {[%clk 0:01:09.2]}
28. Rxf5 {[%clk 0:00:38.8]} 28... Qe6 {[%clk 0:01:00.7]} 29. Rxg5 {[%clk
0:00:25.8]} 29... Bxg5 {[%clk 0:01:00]} 30. Qxg5 {[%clk 0:00:26.7]} 30... f6
{[%clk 0:00:53.9]} 31. Qg4 {[%clk 0:00:26.6]} 31... Qxg4 {[%clk 0:00:49.9]} 32.
Nxg4 {[%clk 0:00:26.1]} 32... Rc4 {[%clk 0:00:38.7]} 33. Bf2 {[%clk 0:00:21.6]}
33... Rc2 {[%clk 0:00:38.3]} 34. Kg1 {[%clk 0:00:19.8]} 34... Ra2 {[%clk
0:00:36.7]} 35. b3 {[%clk 0:00:17.9]} 35... Rab2 {[%clk 0:00:32]} 36. Rxb2
{[%clk 0:00:14.7]} 36... Rxb2 {[%clk 0:00:32.2]} 37. Ne3 {[%clk 0:00:15.2]}
37... Rxb3 {[%clk 0:00:32.2]} 38. Nxd5 {[%clk 0:00:15.7]} 38... Rb1+ {[%clk
0:00:31.1]} 39. Kg2 {[%clk 0:00:15.5]} 39... b3 {[%clk 0:00:31.7]} 40. Nc3
{[%clk 0:00:11.6]} 40... Rc1 {[%clk 0:00:31.3]} 41. Na4 {[%clk 0:00:10.5]} 41...
Rc4 {[%clk 0:00:25.4]} 42. Nb2 {[%clk 0:00:09.7]} 42... Rc2 {[%clk 0:00:25.2]}
43. Nd3 {[%clk 0:00:08.5]} 43... b2 {[%clk 0:00:25.1]} 44. Nxb2 {[%clk
0:00:08.9]} 44... Rxb2 {[%clk 0:00:26]} 45. Kf3 {[%clk 0:00:09.3]} 45... Kf7
{[%clk 0:00:25]} 46. h3 {[%clk 0:00:09.7]} 46... Ke6 {[%clk 0:00:25.5]} 47. Be3
{[%clk 0:00:09.5]} 47... Kd5 {[%clk 0:00:26]} 48. Kf4 {[%clk 0:00:09.7]} 48...
Rh2 {[%clk 0:00:24.3]} 49. Kg3 {[%clk 0:00:09.6]} 49... Rc2 {[%clk 0:00:22.4]}
50. Kf4 {[%clk 0:00:09.7]} 50... Rc4 {[%clk 0:00:21.7]} 51. Bf2 {[%clk
0:00:08.4]} 51... g6 {[%clk 0:00:20.2]} 52. Kf3 {[%clk 0:00:08.4]} 52... Rxd4
{[%clk 0:00:20]} 53. Bxd4 {[%clk 0:00:08.4]} 53... Kxd4 {[%clk 0:00:20.9]} 54.
Kf4 {[%clk 0:00:08.8]} 54... Kd5 {[%clk 0:00:21.4]} 55. Kg4 {[%clk 0:00:08.5]}
55... Ke5 {[%clk 0:00:21.2]} 56. Kh4 {[%clk 0:00:08.6]} 56... h5 {[%clk
0:00:20.2]} 57. Kg3 {[%clk 0:00:08.4]} 57... Kf5 {[%clk 0:00:19.3]} 58. Kh4
{[%clk 0:00:09.3]} 58... Ke4 {[%clk 0:00:19.1]} 59. Kg3 {[%clk 0:00:09.3]} 59...
g5 {[%clk 0:00:19.7]} 60. Kf2 {[%clk 0:00:08.8]} 60... Kf4 {[%clk 0:00:19]} 61.
Kg2 {[%clk 0:00:09.1]} 61... g4 {[%clk 0:00:18.8]} 62. h4 {[%clk 0:00:05.7]}
62... g3 {[%clk 0:00:16.5]} 63. Kh3 {[%clk 0:00:05.8]} 63... g2 {[%clk
0:00:17.1]} 64. Kxg2 {[%clk 0:00:05.8]} 64... Kg4 {[%clk 0:00:17.7]} 65. Kh2
{[%clk 0:00:06.3]} 65... Kxh4 {[%clk 0:00:18.2]} 66. Kg2 {[%clk 0:00:07.2]}
66... Kg4 {[%clk 0:00:18.9]} 67. Kh2 {[%clk 0:00:08.1]} 67... f5 {[%clk
0:00:19.6]} 68. Kg2 {[%clk 0:00:09]} 68... f4 {[%clk 0:00:20.4]} 69. Kh2 {[%clk
0:00:09.9]} 69... h4 {[%clk 0:00:21.1]} 70. Kg2 {[%clk 0:00:10.8]} 70... f3+
{[%clk 0:00:21.7]} 71. Kh2 {[%clk 0:00:11.7]} 71... Kf4 {[%clk 0:00:21]} 72. Kg1
{[%clk 0:00:09.5]} 72... Ke3 {[%clk 0:00:21.3]} 73. Kf1 {[%clk 0:00:09.9]} 73...
f2 {[%clk 0:00:21.7]} 74. Kg2 {[%clk 0:00:09.6]} 74... Ke2 {[%clk 0:00:22.6]}
75. Kh2 {[%clk 0:00:09.7]} 75... h3 {[%clk 0:00:19.6]} 76. Kxh3 {[%clk
0:00:08.8]} 76... f1=Q+ {[%clk 0:00:19.8]} 77. Kg3 {[%clk 0:00:09.3]} 77... Qf3+
{[%clk 0:00:20.3]} 78. Kh4 {[%clk 0:00:09.4]} 78... Qg2 {[%clk 0:00:20.6]} 79.
Kh5 {[%clk 0:00:09.7]} 79... Kf3 {[%clk 0:00:21.5]} 80. Kh6 {[%clk 0:00:09.9]}
80... Kf4 {[%clk 0:00:22.4]} 81. Kh7 {[%clk 0:00:10.3]} 81... Kf5 {[%clk
0:00:23.3]} 82. Kh8 {[%clk 0:00:10.1]} 82... Kf6 {[%clk 0:00:24.2]} 0-1

[Event "Late-Titled-Tuesday-Blitz-July-09-2024"]
[Site "Chess.com"]
[Date "2024.07.09"]
[Round "8"]
[White "EternalNight8"]
[Black "VitorBronson"]
[Result "0-1"]
[WhiteElo "2371"]
[BlackElo "2510"]
[TimeControl "180+1"]
[EndTime "15:29:08 PDT"]
[Termination "VitorBronson won on time"]

1. e4 {[%clk 0:03:00.9]} 1... c5 {[%clk 0:01:47.3]} 2. Nf3 {[%clk 0:02:53.5]}
2... d6 {[%clk 0:01:44.1]} 3. d4 {[%clk 0:02:53.3]} 3... cxd4 {[%clk 0:01:44.5]}
4. Nxd4 {[%clk 0:02:54.2]} 4... Nf6 {[%clk 0:01:44.3]} 5. Nc3 {[%clk 0:02:54.6]}
5... a6 {[%clk 0:01:44.9]} 6. Bg5 {[%clk 0:02:54.1]} 6... e6 {[%clk 0:01:44.7]}
7. f4 {[%clk 0:02:53.3]} 7... Be7 {[%clk 0:01:44.1]} 8. Qf3 {[%clk 0:02:51.2]}
8... h6 {[%clk 0:01:44]} 9. Bxf6 {[%clk 0:02:34.5]} 9... Bxf6 {[%clk 0:01:43.7]}
10. O-O-O {[%clk 0:02:35.1]} 10... Qb6 {[%clk 0:01:41.6]} 11. Nb3 {[%clk
0:02:28.4]} 11... O-O {[%clk 0:01:39.5]} 12. g4 {[%clk 0:02:22.6]} 12... a5
{[%clk 0:01:31.8]} 13. Nd2 {[%clk 0:01:41.3]} 13... a4 {[%clk 0:01:25.6]} 14.
Nc4 {[%clk 0:01:35]} 14... Qc5 {[%clk 0:01:18.7]} 15. e5 {[%clk 0:01:17.7]}
15... dxe5 {[%clk 0:01:15.5]} 16. Ne4 {[%clk 0:01:17]} 16... Qe7 {[%clk
0:01:11.2]} 17. fxe5 {[%clk 0:01:11.8]} 17... Bg5+ {[%clk 0:01:09.9]} 18. Kb1
{[%clk 0:01:09]} 18... a3 {[%clk 0:01:02.4]} 19. h4 {[%clk 0:01:01.9]} 19...
Bxh4 {[%clk 0:00:56.1]} 20. Nxa3 {[%clk 0:00:49]} 20... Rxa3 {[%clk 0:00:53.9]}
21. Qxa3 {[%clk 0:00:47.1]} 21... Qxa3 {[%clk 0:00:53.7]} 22. bxa3 {[%clk
0:00:48]} 22... Be7 {[%clk 0:00:54.1]} 23. Bb5 {[%clk 0:00:33.2]} 23... Bxa3
{[%clk 0:00:49.5]} 24. Nd6 {[%clk 0:00:32.3]} 24... Bd7 {[%clk 0:00:46.2]} 25.
Bxd7 {[%clk 0:00:20.4]} 25... Nxd7 {[%clk 0:00:39.4]} 26. Rhe1 {[%clk
0:00:20.9]} 26... Nb6 {[%clk 0:00:27.6]} 27. Re4 {[%clk 0:00:18.2]} 27... Nd5
{[%clk 0:00:27.2]} 28. Rxd5 {[%clk 0:00:16.9]} 28... exd5 {[%clk 0:00:27.1]} 29.
Rd4 {[%clk 0:00:17.8]} 29... f6 {[%clk 0:00:21.3]} 30. Rxd5 {[%clk 0:00:13.8]}
30... fxe5 {[%clk 0:00:20.9]} 31. Nf5 {[%clk 0:00:14.4]} 31... Re8 {[%clk
0:00:17.3]} 32. c4 {[%clk 0:00:12.2]} 32... e4 {[%clk 0:00:17.1]} 33. Rd1 {[%clk
0:00:11]} 33... e3 {[%clk 0:00:16]} 34. Re1 {[%clk 0:00:09.4]} 34... Bc5 {[%clk
0:00:11.3]} 35. Kc2 {[%clk 0:00:08.7]} 35... g6 {[%clk 0:00:07.6]} 36. Ng3
{[%clk 0:00:07.1]} 36... Kg7 {[%clk 0:00:06.8]} 37. Kd3 {[%clk 0:00:07]} 37...
Ra8 {[%clk 0:00:06.4]} 38. Re2 {[%clk 0:00:06.8]} 38... Ra3+ {[%clk 0:00:06.1]}
39. Ke4 {[%clk 0:00:07.1]} 39... Ra4 {[%clk 0:00:04.5]} 40. Kd5 {[%clk
0:00:07.3]} 40... b6 {[%clk 0:00:05.1]} 41. Ne4 {[%clk 0:00:07.7]} 41... Ra3
{[%clk 0:00:04.1]} 42. Nxc5 {[%clk 0:00:07.4]} 42... bxc5 {[%clk 0:00:04.2]} 43.
Kxc5 {[%clk 0:00:08.3]} 43... Ra5+ {[%clk 0:00:04.2]} 44. Kd4 {[%clk 0:00:08.4]}
44... Rg5 {[%clk 0:00:05.1]} 45. Rxe3 {[%clk 0:00:04.4]} 45... Rxg4+ {[%clk
0:00:05.6]} 46. Kd5 {[%clk 0:00:04.9]} 46... Rg2 {[%clk 0:00:05.7]} 47. a3
{[%clk 0:00:03.6]} 47... Rd2+ {[%clk 0:00:05.1]} 48. Ke6 {[%clk 0:00:03.3]}
48... h5 {[%clk 0:00:05.6]} 49. c5 {[%clk 0:00:03.3]} 49... h4 {[%clk
0:00:05.8]} 50. c6 {[%clk 0:00:02.8]} 50... Rc2 {[%clk 0:00:04.9]} 51. Kd7
{[%clk 0:00:02.5]} 51... g5 {[%clk 0:00:04.5]} 52. c7 {[%clk 0:00:01.3]} 52...
Rd2+ {[%clk 0:00:04.6]} 53. Ke8 {[%clk 0:00:01.9]} 53... Rc2 {[%clk 0:00:04.7]}
54. Kd8 {[%clk 0:00:02.5]} 54... Rd2+ {[%clk 0:00:04.7]} 55. Ke8 {[%clk
0:00:03.1]} 55... Rc2 {[%clk 0:00:04.5]} 56. Re7+ {[%clk 0:00:03.5]} 56... Kf6
{[%clk 0:00:04.6]} 57. Kd8 {[%clk 0:00:03.1]} 57... h3 {[%clk 0:00:04]} 58. Rd7
{[%clk 0:00:02.9]} 58... h2 {[%clk 0:00:03.9]} 59. Rd6+ {[%clk 0:00:02.5]} 59...
Kf5 {[%clk 0:00:04]} 60. Rh6 {[%clk 0:00:02.5]} 60... g4 {[%clk 0:00:02.9]} 61.
c8=Q+ {[%clk 0:00:01.6]} 61... Rxc8+ {[%clk 0:00:02.4]} 62. Kxc8 {[%clk
0:00:02.5]} 62... g3 {[%clk 0:00:02.8]} 63. a4 {[%clk 0:00:02.8]} 63... g2
{[%clk 0:00:03.3]} 64. Rxh2 {[%clk 0:00:02.5]} 64... g1=Q {[%clk 0:00:03.9]} 65.
Rb2 {[%clk 0:00:02.9]} 65... Qc1+ {[%clk 0:00:03.4]} 0-1

[Event "Late-Titled-Tuesday-Blitz-July-09-2024"]
[Site "Chess.com"]
[Date "2024.07.09"]
[Round "8"]
[White "mbachez"]
[Black "Mikhal867"]
[Result "1-0"]
[WhiteElo "2621"]
[BlackElo "2453"]
[TimeControl "180+1"]
[EndTime "15:29:10 PDT"]
[Termination "mbachez won by resignation"]

1. e4 {[%clk 0:02:55.1]} 1... g6 {[%clk 0:02:59.3]} 2. d4 {[%clk 0:02:54.4]}
2... Bg7 {[%clk 0:02:58.6]} 3. Nf3 {[%clk 0:02:55]} 3... d6 {[%clk 0:02:58.2]}
4. Bc4 {[%clk 0:02:55.6]} 4... e6 {[%clk 0:02:56.9]} 5. O-O {[%clk 0:02:53.6]}
5... Ne7 {[%clk 0:02:56.3]} 6. Re1 {[%clk 0:02:54]} 6... a6 {[%clk 0:02:54.9]}
7. Nc3 {[%clk 0:02:54.5]} 7... b5 {[%clk 0:02:54.7]} 8. Bd3 {[%clk 0:02:54.5]}
8... Nd7 {[%clk 0:02:52.9]} 9. a4 {[%clk 0:02:53.9]} 9... b4 {[%clk 0:02:51.5]}
10. Ne2 {[%clk 0:02:54.5]} 10... a5 {[%clk 0:02:49.6]} 11. c3 {[%clk 0:02:54.8]}
11... Ba6 {[%clk 0:02:34.4]} 12. Bxa6 {[%clk 0:02:48]} 12... Rxa6 {[%clk
0:02:33.9]} 13. cxb4 {[%clk 0:02:48.6]} 13... axb4 {[%clk 0:02:33.9]} 14. b3
{[%clk 0:02:49.3]} 14... O-O {[%clk 0:02:29.2]} 15. Bd2 {[%clk 0:02:49.1]} 15...
c5 {[%clk 0:02:28.2]} 16. Rc1 {[%clk 0:02:47.6]} 16... Nc6 {[%clk 0:02:24.2]}
17. dxc5 {[%clk 0:02:46.6]} 17... Nxc5 {[%clk 0:02:21]} 18. Be3 {[%clk
0:02:39.2]} 18... Na5 {[%clk 0:01:56]} 19. Bxc5 {[%clk 0:02:29.7]} 19... dxc5
{[%clk 0:01:55.1]} 20. Qc2 {[%clk 0:02:29.2]} 20... c4 {[%clk 0:01:45.1]} 21.
bxc4 {[%clk 0:02:27.9]} 21... b3 {[%clk 0:01:45.1]} 22. Qb1 {[%clk 0:02:27.7]}
22... b2 {[%clk 0:01:43.5]} 23. Rc2 {[%clk 0:02:27]} 23... Qd7 {[%clk
0:01:38.5]} 24. Rxb2 {[%clk 0:02:19.7]} 24... Bxb2 {[%clk 0:01:35]} 25. Qxb2
{[%clk 0:02:19.9]} 25... Nxc4 {[%clk 0:01:33.5]} 26. Qc3 {[%clk 0:02:20]} 26...
Rxa4 {[%clk 0:01:28.7]} 27. h4 {[%clk 0:02:17.7]} 27... Qe7 {[%clk 0:01:10.1]}
28. h5 {[%clk 0:02:09.7]} 28... e5 {[%clk 0:01:07.7]} 29. Ng3 {[%clk 0:02:04.7]}
29... Rfa8 {[%clk 0:01:05]} 30. Qd3 {[%clk 0:01:58.9]} 30... Qd8 {[%clk
0:01:01.2]} 31. Qe2 {[%clk 0:01:55.4]} 31... Qf6 {[%clk 0:00:56]} 32. Rc1 {[%clk
0:01:52.4]} 32... Nd6 {[%clk 0:00:50.7]} 33. Rc6 {[%clk 0:01:40.7]} 33... Qe7
{[%clk 0:00:50.4]} 34. h6 {[%clk 0:01:39.3]} 34... Rc8 {[%clk 0:00:42.4]} 35.
Rxc8+ {[%clk 0:01:27.6]} 35... Nxc8 {[%clk 0:00:42]} 36. Qb5 {[%clk 0:01:27.5]}
36... Ra1+ {[%clk 0:00:38.4]} 37. Kh2 {[%clk 0:01:27.5]} 37... Nd6 {[%clk
0:00:36.7]} 38. Qb8+ {[%clk 0:01:23.9]} 38... Qf8 {[%clk 0:00:36.7]} 39. Qxf8+
{[%clk 0:01:21.6]} 39... Kxf8 {[%clk 0:00:36.5]} 40. Nxe5 {[%clk 0:01:22]} 40...
Re1 {[%clk 0:00:34.1]} 41. Nf3 {[%clk 0:01:11.4]} 41... Rd1 {[%clk 0:00:33]} 42.
Ng5 {[%clk 0:01:09]} 42... Kg8 {[%clk 0:00:32.4]} 43. e5 {[%clk 0:01:09.1]}
43... Nc4 {[%clk 0:00:31]} 44. f4 {[%clk 0:01:05.4]} 44... Ne3 {[%clk
0:00:30.2]} 45. Kh3 {[%clk 0:00:55.8]} 45... Rd3 {[%clk 0:00:28.9]} 46. Nf3
{[%clk 0:00:41]} 46... Nd5 {[%clk 0:00:24.3]} 47. Kg4 {[%clk 0:00:40.3]} 47...
Ne7 {[%clk 0:00:23.7]} 48. Ne4 {[%clk 0:00:36.1]} 48... Nf5 {[%clk 0:00:22.4]}
49. Nf6+ {[%clk 0:00:36]} 49... Kh8 {[%clk 0:00:22.5]} 50. Kg5 {[%clk
0:00:34.7]} 50... Ra3 {[%clk 0:00:17.2]} 51. Ne4 {[%clk 0:00:17.5]} 51... Ra2
{[%clk 0:00:16.9]} 52. g4 {[%clk 0:00:16.6]} 52... Rg2 {[%clk 0:00:15.8]} 53.
Nf6 {[%clk 0:00:14.5]} 53... Ne3 {[%clk 0:00:14.4]} 54. e6 {[%clk 0:00:14.1]}
54... fxe6 {[%clk 0:00:14.2]} 55. Ne5 {[%clk 0:00:14.3]} 55... Rxg4+ {[%clk
0:00:04.5]} 56. Nexg4 {[%clk 0:00:10.2]} 56... Nxg4 {[%clk 0:00:01.7]} 57. Kxg4
{[%clk 0:00:08.8]} 57... g5 {[%clk 0:00:01.3]} 58. fxg5 {[%clk 0:00:08.3]} 58...
e5 {[%clk 0:00:01.6]} 59. Kf5 {[%clk 0:00:04.1]} 59... e4 {[%clk 0:00:02]} 60.
Nxe4 {[%clk 0:00:04.4]} 60... Kg8 {[%clk 0:00:01.8]} 61. Kf6 {[%clk 0:00:04.6]}
61... Kh8 {[%clk 0:00:02.2]} 62. Nd6 {[%clk 0:00:05.1]} 62... Kg8 {[%clk
0:00:02.6]} 63. Nf7 {[%clk 0:00:05.6]} 63... Kf8 {[%clk 0:00:02.3]} 64. g6
{[%clk 0:00:06.2]} 64... Kg8 {[%clk 0:00:02.6]} 65. Ng5 {[%clk 0:00:05.8]} 65...
hxg6 {[%clk 0:00:02.5]} 66. Kxg6 {[%clk 0:00:06.3]} 66... Kh8 {[%clk 0:00:02.9]}
67. Nf7+ {[%clk 0:00:06.6]} 67... Kg8 {[%clk 0:00:03.3]} 68. h7+ {[%clk
0:00:07.2]} 68... Kf8 {[%clk 0:00:03.7]} 69. h8=Q+ {[%clk 0:00:06.9]} 69... Ke7
{[%clk 0:00:04.3]} 70. Qd8+ {[%clk 0:00:07.4]} 1-0